{"text_format":"1","workbook":"xlsx","n_sheets":7,"sheets":["Data Entry","Score Sheet","Main Idea","Author's Use","Inferences","Literary Analysis","Look Up tables"],"not_rendered":{"charts":0,"images":0,"macros":1,"external_links":0,"defined_names":0,"comments":0,"pivot_tables":0},"unopened":[],"bounds":{"document_bytes":16777216,"sheet_cells":100000,"rows_first":2000,"rows_last":500,"rows_between":2000,"halvings":0,"cell_chars":16384,"cell_head_chars":4096},"cells_cut":0,"cells_raw":0,"read":"whole","date_system":"1900"}

{"sheet":"Data Entry","index":0,"n_rows":12,"n_cols":2,"rows_kept":12,"cut":false,"hidden":false,"merged":[[0,0,0,1]]}
["TSI Mathematics Diagnostic Test - Form T"]
["Student's Name"]
["Student's ID"]
["Date of Birth"]
["Date Tested"]
["Site ID"]
["Proctor"]
["Enter the Raw score for each of the strands below","Raw Scores"]
["Main Idea and Supporting Details"]
["Author’s Use of Language "]
["Inferences in a Text or Texts "]
["Literary Analysis"]

{"sheet":"Score Sheet","index":1,"n_rows":10,"n_cols":6,"rows_kept":10,"cut":false,"hidden":false,"merged":[[0,0,0,5],[2,1,2,3],[1,1,1,3],[3,1,3,3],[4,1,4,3],[1,4,1,5],[2,4,2,5],[3,4,3,5],[4,4,4,5]]}
["TSI Diagnostic Score Report - Reading - Form T"]
[{"$f":"'Data Entry'!A2","v":"Student's Name"},"Date of Birth",null,null,"Site ID"]
[{"$f":"'Data Entry'!B2","v":0},{"$f":"'Data Entry'!B4","v":"00:00:00"},null,null,{"$f":"'Data Entry'!B6","v":0}]
[{"$f":"'Data Entry'!A3","v":"Student's ID"},"Date Tested",null,null,"Proctor"]
[{"$f":"'Data Entry'!B3","v":0},{"$f":"'Data Entry'!B5","v":"00:00:00"},null,null,{"$f":"'Data Entry'!B7","v":0}]
["Strands","Raw Score","Scaled          Score","Category Score","Category Description","Proficiency Statements"]
["Main Idea and Supporting Details",{"$f":"'Data Entry'!B9","v":0},{"$f":"LOOKUP(B7,'Look Up tables'!A3:B24)","v":1},{"$f":"LOOKUP(C7,'Look Up tables'!D4:E18)","v":1},{"$f":"LOOKUP(D7,'Look Up tables'!A29:B31)","v":"Needs Improvement"},{"$f":"LOOKUP(C7,'Main Idea'!B2:C4)","v":"Your performance in the Main Idea and Supporting Details area suggests that you need to improve significantly in this area. This area tests your ability to understand text. You need to work extensively on identifying stated and implied main ideas, supporting details, and author’s purpose and tone."}]
["Author’s Use of Language ",{"$f":"'Data Entry'!B10","v":0},{"$f":"LOOKUP(B8,'Look Up tables'!G3:H24)","v":1},{"$f":"LOOKUP(C8,'Look Up tables'!J4:K18)","v":1},{"$f":"LOOKUP(D8,'Look Up tables'!A29:B31)","v":"Needs Improvement"},{"$f":"LOOKUP(C8,'Author''s Use'!B2:C4)","v":"Your performance in the Author’s Use of Language area suggests that you need to improve significantly in this area.  You need to work on identifying the author’s purpose, tone, organization, and rhetorical strategies; determining the meaning of words using context; and analyzing the use of evidence in a passage when the information is implied or the answer choices require simple synthesis."}]
["Inferences in a Text or Texts ",{"$f":"'Data Entry'!B11","v":0},{"$f":"LOOKUP(B9,'Look Up tables'!M3:N24)","v":1},{"$f":"LOOKUP(C9,'Look Up tables'!P4:Q18)","v":1},{"$f":"LOOKUP(D9,'Look Up tables'!A29:B31)","v":"Needs Improvement"},{"$f":"LOOKUP(C9,Inferences!B2:C4)","v":"Your performance in the Inferences in Text or Texts area suggests that you need to improve significantly in this area.  You need to work on understanding inferences about informational texts.  You also need to work on supporting inferences with specific evidence as well as drawing conclusions and making generalizations about paired texts based on details and ideas."}]
["Literary Analysis",{"$f":"'Data Entry'!B12","v":0},{"$f":"LOOKUP(B10,'Look Up tables'!S3:T24)","v":1},{"$f":"LOOKUP(C10,'Look Up tables'!V4:W18)","v":1},{"$f":"LOOKUP(D10,'Look Up tables'!A29:B31)","v":"Needs Improvement"},{"$f":"LOOKUP(C10,'Literary Analysis'!B2:C4)","v":"Your performance in the Literary Analysis area suggests that you need to improve significantly in this area. You need to work on comprehending universal themes and the ways literary devices contribute to the development of plots and characters.  You also need to work on analyzing how the author’s use of diction and figurative language supports the meaning in fiction or literary nonfiction."}]

{"sheet":"Main Idea","index":2,"n_rows":4,"n_cols":3,"rows_kept":4,"cut":false,"hidden":true,"merged":[]}
["Categorical Score",null,"Main Idea and Supporting Details"]
["Needs Improvement",1,"Your performance in the Main Idea and Supporting Details area suggests that you need to improve significantly in this area. This area tests your ability to understand text. You need to work extensively on identifying stated and implied main ideas, supporting details, and author’s purpose and tone."]
["Limited Proficiency",2,"Your performance in the Main Idea and Supporting Details area suggests that while you have some skill in this area, there is room for improvement. This area tests your understanding of informational texts. You need to work on identifying stated and implied main ideas, supporting details, and identifying author’s purpose and tone.  You should also work on making inferences and drawing conclusions, identifying organizational patterns, and interpreting figurative language."]
["Proficient",3,"Your performance in the Main Idea and Supporting Details area suggests you have well-developed skills.  This area tests your understanding of informational texts, as well as your ability to consistently identify the stated or implied main idea of a passage, recognize supporting details, and demonstrate understanding of the relationship between those parts."]

{"sheet":"Author's Use","index":3,"n_rows":4,"n_cols":3,"rows_kept":4,"cut":false,"hidden":true,"merged":[]}
[null,null,"Author’s Use of Language"]
["Needs Improvement",1,"Your performance in the Author’s Use of Language area suggests that you need to improve significantly in this area.  You need to work on identifying the author’s purpose, tone, organization, and rhetorical strategies; determining the meaning of words using context; and analyzing the use of evidence in a passage when the information is implied or the answer choices require simple synthesis."]
["Limited Proficiency",2,"Your performance in the Author’s Use of Language area suggests that while you have some skill in this area, there is room for improvement. This area tests your ability to analyze rhetorical strategies.  You need to work on identifying the author’s purpose, tone, and organization; determining the meaning of words using context; and analyzing the use of evidence in a passage when the information is implied or the answer choices require simple synthesis."]
["Proficient",3,"Your performance in the Author’s Use of Language area suggests you have well-developed skills.  This area tests your ability to analyze the author’s purpose, tone, organization, rhetorical strategies; to determine the meaning of words using context; and to analyze the use of evidence in a passage when the information is implied or the answer choices require simple synthesis."]

{"sheet":"Inferences","index":4,"n_rows":4,"n_cols":3,"rows_kept":4,"cut":false,"hidden":true,"merged":[]}
[null,null,"Inferences in a Text or Texts"]
["Needs Improvement",1,"Your performance in the Inferences in Text or Texts area suggests that you need to improve significantly in this area.  You need to work on understanding inferences about informational texts.  You also need to work on supporting inferences with specific evidence as well as drawing conclusions and making generalizations about paired texts based on details and ideas."]
["Limited Proficiency",2,"Your performance in the Inferences in a Text or Texts area suggests that while you have some skill in this area, there is room for improvement. This area tests your ability to make and understand inferences about informational texts.  You need to work on supporting inferences with specific evidence as well as drawing conclusions and making generalizations about paired texts based on details and ideas."]
["Proficient",3,"Your performance in the Inferences in a Text or Texts area suggests you have well-developed skills.  This area tests your ability to make inferences about informational texts and to support the inferences with specific evidence.  It also tests your ability to draw conclusions and making generalizations about paired texts based on details and ideas."]

{"sheet":"Literary Analysis","index":5,"n_rows":4,"n_cols":3,"rows_kept":4,"cut":false,"hidden":true,"merged":[]}
[null,null,"Literary Analysis"]
["Needs Improvement",1,"Your performance in the Literary Analysis area suggests that you need to improve significantly in this area. You need to work on comprehending universal themes and the ways literary devices contribute to the development of plots and characters.  You also need to work on analyzing how the author’s use of diction and figurative language supports the meaning in fiction or literary nonfiction."]
["Limited Proficiency",2,"Your performance in the Literary Analysis area suggests that while you have some skill in this area, there is room for improvement. This area tests your ability to understand themes and literary devices. You need to work on understanding how literary devices contribute to the development of plots and characters and analyzing how the author’s use of diction and figurative language supports the meaning in fiction or literary nonfiction."]
["Proficient",3,"Your performance in the Literary Analysis area suggests you have well-developed skills.  This area tests your ability to apply your knowledge of universal themes and literary devices to the development of plot and characters and to analyze how author’s use of diction and figurative language supports the meaning in fiction or literary nonfiction."]

{"sheet":"Look Up tables","index":6,"n_rows":31,"n_cols":23,"rows_kept":31,"cut":false,"hidden":true,"merged":[[0,18,0,22],[0,0,0,4],[0,6,0,10],[0,12,0,16],[1,3,1,4],[1,12,1,13],[1,15,1,16],[26,0,26,1],[1,9,1,10],[1,0,1,1],[1,6,1,7],[1,21,1,22],[1,18,1,19]]}
["Main Idea and Supporting Details",null,null,null,null,null,"Author’s Use of Language",null,null,null,null,null,"Inferences in a Text or Texts",null,null,null,null,null,"Literary Analysis"]
["Form T",null,null,"Form T",null,null,"Form T",null,null,"Form T",null,null,"Form T",null,null,"Form T",null,null,"Form T",null,null,"Form T"]
["Raw Score","Category Score",null,null,null,null,"Raw Score","Category Score",null,null,null,null,"Raw Score","Category Score",null,null,null,null,"Raw Score","Category Score"]
[0,1,null,1,1,null,0,1,null,1,1,null,0,1,null,1,1,null,0,1,null,1,1]
[1,1,null,2,1,null,1,1,null,2,1,null,1,1,null,2,1,null,1,1,null,2,1]
[2,1,null,3,1,null,2,1,null,3,1,null,2,1,null,3,1,null,2,1,null,3,1]
[3,1,null,4,1,null,3,1,null,4,1,null,3,1,null,4,1,null,3,1,null,4,1]
[4,1,null,5,2,null,4,1,null,5,2,null,4,1,null,5,2,null,4,1,null,5,2]
[5,1,null,6,2,null,5,1,null,6,2,null,5,1,null,6,2,null,5,1,null,6,2]
[6,1,null,7,2,null,6,1,null,7,2,null,6,2,null,7,2,null,6,1,null,7,2]
[7,2,null,8,2,null,7,2,null,8,2,null,7,2,null,8,2,null,7,2,null,8,2]
[8,3,null,9,2,null,8,3,null,9,2,null,8,3,null,9,2,null,8,3,null,9,2]
[9,3,null,10,3,null,9,3,null,10,3,null,9,4,null,10,3,null,9,4,null,10,3]
[10,4,null,11,3,null,10,4,null,11,3,null,10,4,null,11,3,null,10,4,null,11,3]
[11,4,null,12,3,null,11,4,null,12,3,null,11,5,null,12,3,null,11,4,null,12,3]
[12,4,null,13,3,null,12,5,null,13,3,null,12,6,null,13,3,null,12,5,null,13,3]
[13,5,null,14,3,null,13,5,null,14,3,null,13,7,null,14,3,null,13,6,null,14,3]
[14,6,null,15,3,null,14,6,null,15,3,null,14,8,null,15,3,null,14,7,null,15,3]
[15,7,null,null,null,null,15,8,null,null,null,null,15,9,null,null,null,null,15,8]
[16,8,null,null,null,null,16,9,null,null,null,null,16,10,null,null,null,null,16,9]
[17,10,null,null,null,null,17,10,null,null,null,null,17,11,null,null,null,null,17,10]
[18,10,null,null,null,null,18,10,null,null,null,null,18,11,null,null,null,null,18,11]
[19,11,null,null,null,null,19,12,null,null,null,null,19,13,null,null,null,null,19,13]
[20,15,null,null,null,null,20,15,null,null,null,null,20,15,null,null,null,null,20,15]
[]
[]
["Form T"]
["Raw Score","Category Score"]
[1,"Needs Improvement"]
[2,"Limited Proficiency"]
[3,"Proficient"]